Cogmind - Beta 11 X6 @@@ ROGUE MODE // 2021.07.17 @ 07:35:15 Player: cptwinky Result: Escaped! Performance ------------- Evolutions (9) 4500 Regions Visited (27) 5400 Robots Destroyed (139) 695 Value Destroyed (4264) 4264 Prototype IDs (69) 1380 Alien Tech Used (4) 800 Bonus (5074) 5074 TOTAL SCORE: 22113 Bonus ------- High Alert Combat Kills 152 Follower Combat Kills 918 Aligned with FarCom 300 Met Data Miner 300 Met Imprinter 300 MAIN.C Attacked Warlord 500 Win 3000 Friendly Fire -396 Cogmind --------- Core Integrity 1575/1600 Matter 262/300 Energy 56/100 System Corruption 2% Temperature Cool (4) Movement Flying (29) Location To Epsilon Eridani Parts ------- > --- POWER (2) -------- Backup Power VII Backup Power VII > --- PROPULSION (8) --- Improved Diametric Drive Impulse Thruster Array Impulse Thruster Array Improved Q-thruster > --- UTILITY (14) ----- Advanced Sensor Array Advanced Signal Interpreter Nanoactuators Advanced Transmission Jammer Reaction Control System Experimental Thermal Shield Hacking Suite Improved Hacking Suite Improved Hacking Suite System Shield > --- WEAPON (2) ------- Hypervelocity Multirail CR-A16's Behemoth Slayer > --- INVENTORY (5) ---- Improved Potential Cannon Mini Smartbomb Launcher Sigix Broadsword Peak State ------------ > --- POWER ------------ Backup Power VII Improved Quantum Reactor > --- PROPULSION ------- Field Propulsion Array Improved Diametric Drive Impulse Thruster Array Impulse Thruster Array Cooled Q-thruster > --- UTILITY ---------- Experimental Heat Sink Medium Storage Unit Advanced Sensor Array Advanced Signal Interpreter Nanoactuators Advanced Transmission Jammer Reaction Control System Improved Medium Armor Plating Experimental Thermal Shield Hacking Suite Improved Hacking Suite Improved Hacking Suite System Shield Improved System Shield > --- WEAPON ----------- Sigix Broadsword > --- INVENTORY -------- Backup Power VII Improved Q-thruster Makeshift ECM Suite Subatomic Replicator Terrabomb Improved Potential Cannon Hypervelocity Multirail Mini Smartbomb Launcher CR-A16's Behemoth Slayer [Rating: 193] Favorites ----------- Power Ion Engine Engine Ion Engine Power Core Micro Nuclear Core Reactor Improved Quantum Reactor Propulsion Light Treads Treads Light Treads Wheel Armored Huge Wheel Hover Unit Antigrav System Flight Unit Biomechanical Wings Utility Hacking Suite Device Advanced Sensor Array Storage Large Storage Unit Processor Improved Signal Interpreter Hackware Hacking Suite Protection Improved Light Armor Plating Weapon Small Laser Energy Gun Small Laser Energy Cannon Improved Potential Cannon Ballistic Gun Enhanced Autogun Launcher Grenade Launcher Special Weapon Mining Laser Impact Weapon Makeshift Hammer Slashing Weapon Great Axe Piercing Weapon Force Lance Special Melee Weapon Datajack Build | -11 -10 -10 -10 -9 -8 -8 -7 -7 -7 -7 -6 -6 -6 -6 -6 -5 -5 -5 -5 -5 -4 -4 -3 -3 -2 -2 -1 ------- Run | Scr Mat Min Exi Min Mat Sto Fac Low Low Zio Pro Fac Low Low Dat Pro Fac Upp Upp War Pro Fac Res Qua Res Tes Acc Slots Evolved 18 | . . . . . 4 . 2 . . . . 2 . . . . 2 . . . . 2 2 . 2 . 2 Power 1 | . . . . . . . . . . . . . . . . . 1 . . . . . . . . . . Propulsion 5 | . . . . . 2 . . . . . . . . . . . 1 . . . . 1 1 . . . . Utility 12 | . . . . . 2 . 2 . . . . 2 . . . . . . . . . 1 1 . 2 . 2 Weapon . | . . . . . . . . . . . . . . . . . . . . . . . . . . . . Parts Attached 250 | 6 5 2 5 6 32 37 20 4 . 3 3 16 7 9 2 3 11 9 3 3 7 8 17 5 1 14 12 Power 16 | 1 . . . 1 3 1 . 1 . 1 . 1 . . . 1 1 . . . 1 . 2 . . 1 1 Engine 7 | 1 . . . 1 3 1 . . . . . . . . . . 1 . . . . . . . . . . Core 7 | . . . . . . . . 1 . 1 . 1 . . . 1 . . . . 1 . 1 . . . 1 Reactor 2 | . . . . . . . . . . . . . . . . . . . . . . . 1 . . 1 . Propulsion 50 | 2 1 . 2 . 7 10 3 1 . 1 . 6 . . . 1 3 . . . . 3 5 . . 3 2 Treads 19 | 2 1 . 2 . 7 7 . . . . . . . . . . . . . . . . . . . . . Leg . | . . . . . . . . . . . . . . . . . . . . . . . . . . . . Wheel 3 | . . . . . . . 2 . . 1 . . . . . . . . . . . . . . . . . Hover 1 | . . . . . . . . 1 . . . . . . . . . . . . . . . . . . . Flight 27 | . . . . . . 3 1 . . . . 6 . . . 1 3 . . . . 3 5 . . 3 2 Utility 86 | 1 2 . . . 6 3 12 2 . . 1 7 4 5 1 1 4 4 3 2 2 5 7 2 1 8 3 Device 42 | . . . . . 4 1 2 2 . . 1 2 2 4 . . 2 2 2 1 2 4 4 1 1 5 . Storage 4 | 1 1 . . . . . . . . . . 1 . . . 1 . . . . . . . . . . . Processor 13 | . 1 . . . 1 . 8 . . . . 1 . . . . . . . . . . 1 . . 1 . Hackware 13 | . . . . . . . 1 . . . . 2 . . 1 . 2 . . . . 1 1 1 . 2 2 Protection 14 | . . . . . 1 2 1 . . . . 1 2 1 . . . 2 1 1 . . 1 . . . 1 Artifact . | . . . . . . . . . . . . . . . . . . . . . . . . . . . . Weapon 98 | 2 2 2 3 5 16 23 5 . . 1 2 2 3 4 1 . 3 5 . 1 4 . 3 3 . 2 6 Energy Gun 9 | 2 1 1 1 2 2 . . . . . . . . . . . . . . . . . . . . . . Energy Cannon 3 | . . . . . . . . . . . . . . . . . . . . . . . . 1 . 1 1 Ballistic Gun 25 | . . . 1 . 10 13 . . . . . . . . . . . . . . . . . . . . 1 Ballistic Cannon . | . . . . . . . . . . . . . . . . . . . . . . . . . . . . Launcher 21 | . 1 1 1 3 3 2 1 . . . 1 . 1 1 . . 1 2 . . 1 . . . . . 2 Special Weapon 3 | . . . . . 1 2 . . . . . . . . . . . . . . . . . . . . . Impact Weapon 9 | . . . . . . 5 1 . . . . . 1 1 . . . 1 . . . . . . . . . Slashing Weapon 6 | . . . . . . . 3 . . . . . . . . . . . . . . . . 1 . 1 1 Piercing Weapon 21 | . . . . . . . . . . 1 1 2 1 2 1 . 2 2 . 1 3 . 3 1 . . 1 Special Melee Weapon 1 | . . . . . . 1 . . . . . . . . . . . . . . . . . . . . . Unidentified Prototypes 21 | . . . . . 2 2 . 1 . . . 1 . . 1 . 1 . . . . . 1 1 1 6 4 Corrupted Parts 1 | . . . . . . . . . . . . . . . . . . . . . 1 . . . . . . System Corruption 7 | . . . . . . . . . . . . . . . . . . . . . 7 . . . . . . Parts Lost 55 | . . . 3 1 9 10 4 . 2 . . . . 2 2 . 1 . 2 1 . 5 5 . . 1 7 Power 8 | . . . . 1 1 1 1 . . . . . . . 1 . . . 1 . . 1 . . . . 1 Propulsion 20 | . . . 2 . 4 5 . . . . . . . . 1 . 1 . . . . 2 3 . . . 2 Utility 22 | . . . . . 2 3 2 . 2 . . . . 2 . . . . 1 1 . 2 2 . . 1 4 Weapon 5 | . . . 1 . 2 1 1 . . . . . . . . . . . . . . . . . . . . Highest Loss Streak 8 | . . . 3 1 2 8 1 . 2 . . . . 2 2 . 1 . 2 1 . 5 4 . . 1 4 Average Slot Usage (%) 88 | . 96 100 100 100 93 91 78 84 80 71 76 86 100 93 91 93 88 88 83 82 76 74 70 80 73 80 78 Engine 5 | . 14 14 14 14 8 7 2 . . . . . . . . . 4 5 . . . 2 1 . . . . Core 3 | . . . . . . . . 7 7 7 7 5 6 6 5 6 5 5 5 5 5 5 4 8 8 7 3 Treads 11 | . 28 28 28 28 31 31 . . . . . . . . . . . . . . . . . . . . . Wheel 1 | . . . . . . . 7 7 7 7 7 2 . . . . . . . . . . . . . . . Flight 12 | . . . . . . . 14 14 14 14 14 22 31 31 30 31 23 22 22 22 22 22 24 22 20 24 18 Device 10 | . . . . . 12 8 6 7 7 7 12 14 17 15 18 18 15 15 21 21 21 21 16 16 16 21 21 Storage 6 | . 14 14 14 14 9 8 . . . . . 3 6 6 6 6 5 5 5 5 5 5 4 4 4 4 1 Processor 10 | . 10 14 14 14 9 9 25 29 23 14 14 9 6 6 6 6 5 5 . . . . 1 4 2 1 3 Hackware 8 | . . . . . . . 7 7 7 7 7 15 18 18 18 18 16 16 16 15 11 11 12 17 16 16 17 Protection 1 | . . . . . 3 7 2 . . . . . . 1 . . . . . . 5 1 . 1 . . 2 Energy Gun 6 | . 27 22 26 26 . . 2 . . . . . . . . . 4 4 . . . . . . . . . Ballistic Gun 2 | . . . . . 15 15 . . . . . . . . . . . . . . . . . . . . . Launcher 1 | . . 5 1 1 . . 1 . . . . . . . . . . . . . . . . . . . . Piercing Weapon 2 | . . . . . . . . . . 3 7 7 11 4 4 6 4 4 5 10 4 5 2 1 . . . Naked Turns . | . . . . . . . . . . . . . . . . . . . . . . . . . . . . Heaviest Build 56 | 13 29 29 30 31 35 37 10 10 10 10 13 25 31 28 16 21 27 34 37 37 38 38 46 33 31 49 56 Greatest Support 82 | 40 40 40 40 40 82 82 10 10 10 10 10 29 28 28 28 28 38 38 38 38 38 44 48 42 42 59 64 Greatest Overweight (x) 1 | . . . 1 . . . . . . . 1 . 1 . . . . . . . . . . . . . . Average Overweight (x) . | . . . . . . . . . . . . . . . . . . . . . . . . . . . . Largest Inventory Capacity 15 | 8 15 15 15 15 15 15 5 5 5 5 5 8 8 8 8 10 10 10 10 10 10 10 10 10 10 10 10 Average Capacity 10 | 7 11 15 15 15 15 14 5 5 5 5 5 6 8 8 8 8 10 10 10 10 10 10 10 10 10 10 8 Most Carried 15 | 4 10 14 14 11 15 15 5 5 5 5 5 8 8 8 8 7 10 10 10 10 10 10 10 10 10 10 10 Average Carried 9 | 2 7 11 13 10 11 14 4 4 5 5 5 5 8 7 7 6 8 9 9 9 9 9 9 9 10 9 7 Final Capacity 15 | 8 15 15 15 15 15 5 5 5 5 5 5 8 8 8 8 10 10 10 10 10 10 10 10 10 10 10 5 Final Carried 15 | 4 10 14 11 10 15 5 5 5 5 5 5 8 8 7 8 7 10 10 10 10 10 10 9 10 10 10 5 Class Distribution -------------------- 36% | Hacker-Sprinter 35% | Mutant 12% | Scavenger-Mutant 10% | Scout Dominant Class ---------------- Mutant | -10/Materials Mutant | -10/Mines Mutant | -10/Exiles Mutant | -9/Mines Scavenger-Mutant | -8/Materials Scavenger-Mutant | -8/Storage Mutant | -7/Factory Scout | -7/Lower Caves Scout | -7/Lower Caves Scout | -7/Zion Scout | -6/Proximity Caves Hacker-Sprinter | -6/Factory Hacker-Sprinter | -6/Lower Caves Hacker-Sprinter | -6/Lower Caves Hacker-Sprinter | -6/Data Miner Hacker-Sprinter | -5/Proximity Caves Hacker-Sprinter | -5/Factory Hacker-Sprinter | -5/Upper Caves Hacker-Sprinter | -5/Upper Caves Hacker-Sprinter | -5/Warlord Hacker-Sprinter | -4/Proximity Caves Hacker-Sprinter | -4/Factory Hacker-Sprinter | -3/Research Hacker-Sprinter | -3/Quarantine Hacker-Sprinter | -2/Research Hacker-Sprinter | -2/Testing Hacker-Sprinter | -1/Access Resources | -11 -10 -10 -10 -9 -8 -8 -7 -7 -7 -7 -6 -6 -6 -6 -6 -5 -5 -5 -5 -5 -4 -4 -3 -3 -2 -2 -1 ----------- Run | Scr Mat Min Exi Min Mat Sto Fac Low Low Zio Pro Fac Low Low Dat Pro Fac Upp Upp War Pro Fac Res Qua Res Tes Acc Matter Collected 4580 | 227 415 100 . 178 698 823 446 55 . 30 58 83 157 100 10 30 60 315 20 20 165 90 13 133 . 113 241 Remotely . | . . . . . . . . . . . . . . . . . . . . . . . . . . . . Salvage Created 4695 | . 211 160 3 270 692 1064 545 167 . 43 9 83 38 . 23 . 116 147 21 . 238 23 25 175 . 150 492 Parts 256 | . 22 9 . 14 41 53 20 8 . . 1 2 5 . 2 . 11 8 . . 13 5 3 4 . 10 25 Haulers Intercepted 5 | . . . . . 1 3 . . . . . 1 . . . . . . . . . . . . . . . Recyclers Shooed 2 | . . . . . . . 1 . . . . . . . . . . . . . . . . . . 1 . Parts Field Recycled . | . . . . . . . . . . . . . . . . . . . . . . . . . . . . Retrieved Matter . | . . . . . . . . . . . . . . . . . . . . . . . . . . . . Parts Self-Destructed 71 | . . . . . . . . 5 . . 8 . 2 . . . . 6 5 32 13 . . . . . . Prevented 15 | . . . . . . . . 1 . . . . . 1 . . . 3 4 3 3 . . . . . . Kills | -11 -10 -10 -10 -9 -8 -8 -7 -7 -7 -7 -6 -6 -6 -6 -6 -5 -5 -5 -5 -5 -4 -4 -3 -3 -2 -2 -1 ------- Run | Scr Mat Min Exi Min Mat Sto Fac Low Low Zio Pro Fac Low Low Dat Pro Fac Upp Upp War Pro Fac Res Qua Res Tes Acc Combat Hostiles Destroyed 100 | . 9 9 1 10 17 17 8 . . . . . 4 . . . 5 5 1 . 7 . . . . . 7 Melee 6 | . . . . . . . 4 . . . . . . . . . . . 1 . . . . . . . 1 Guns 29 | . 3 5 . 1 10 9 . . . . . . . . . . . . . . . . . . . . 1 AOE 64 | . 6 4 1 9 7 8 4 . . . . . 4 . . . 5 5 . . 6 . . . . . 5 Classes Destroyed 18 | . 4 3 . . 5 . 1 2 . . . . . . . . . . . . 1 . . . . . 2 Worker 5 | . 2 . . . 1 1 . . . . . . . . . . . . . . . . . . . . 1 Builder 4 | . . . . . 1 1 . . . . . . . . . . . . . . . . 1 . . . 1 Hauler 5 | . . . . . 1 3 . . . . . 1 . . . . . . . . . . . . . . . Recycler 9 | . 1 . . 1 . 2 2 . . . . . . . . . . . . . . . . 1 . 1 1 Minesweeper 2 | . . . . . . . . 1 . . . . . . . . . . . . 1 . . . . . . Operator 4 | . . . . . . . 2 . . . . . . . . . . . . . . 1 . . . . 1 Watcher 12 | . 1 . . . 2 . 4 . . . . . . . . . 3 . . . . . . 1 . 1 . Swarmer 44 | . 9 . . 4 . . 7 . . . . . 4 . . . 5 5 1 . 5 . . . . . 4 Grunt 34 | . . 4 . 6 12 11 . . . . . . . . . . . . . . 1 . . . . . . Duelist 1 | . . . . . 1 . . . . . . . . . . . . . . . . . . . . . . Researcher 1 | . . . . . . . . 1 . . . . . . . . . . . . . . . . . . . Sentry 10 | . . . . . 3 6 1 . . . . . . . . . . . . . . . . . . . . Demolisher 1 | . . 1 . . . . . . . . . . . . . . . . . . . . . . . . . Hunter 1 | . . . . . 1 . . . . . . . . . . . . . . . . . . . . . . Programmer 2 | . . . . . . . . . . . . . . . . . . . . . . . . . . . 2 Heavy 1 | . . . . . . . . . . . . . . . . . . . . . . . . . . . 1 Behemoth 1 | . . . . . . . . . . . . . . . . . . . . . 1 . . . . . . Packrat 2 | . . . . . . . . 1 . . . . . . . . . 1 . . . . . . . . . Assembled 5 | . . 4 1 . . . . . . . . . . . . . . . . . . . . . . . . Wasp 1 | . . . . . . . . . . . 1 . . . . . . . . . . . . . . . . Best Kill Streak 9 | . 9 2 1 5 6 9 4 1 . . . 1 4 . 1 . 5 3 1 . 6 1 1 1 . 1 6 Combat Bots Only 8 | . 6 2 1 5 4 8 4 . . . . . 4 . . . 5 3 1 . 6 . . . . . 4 Max Kills in Single Turn 6 | . 3 1 1 3 2 6 4 1 . . 1 1 3 . 1 . 2 2 1 . 2 1 1 1 . 1 3 Gunslinging . | . . . . . . . . . . . . . . . . . . . . . . . . . . . . Exploded 6 | . 3 1 1 3 2 6 4 . . . . . 3 . . . 2 2 . . 2 . . . . . 2 Melee 1 | . . . . . . . 1 . . . . . . . . . . . 1 . . . . . . . 1 Uniques/NPCs Destroyed 1 | . . . . . . . . . . . . . . . 1 . . . . . . . . . . . . Data Miner (-6/Data Miner) Combat | -11 -10 -10 -10 -9 -8 -8 -7 -7 -7 -7 -6 -6 -6 -6 -6 -5 -5 -5 -5 -5 -4 -4 -3 -3 -2 -2 -1 -------- Run | Scr Mat Min Exi Min Mat Sto Fac Low Low Zio Pro Fac Low Low Dat Pro Fac Upp Upp War Pro Fac Res Qua Res Tes Acc Damage Taken 9002 | . 168 226 255 360 1368 1937 680 . 229 . 116 200 44 497 96 36 170 16 82 78 229 524 421 82 18 34 1136 Core 1473 | . 38 22 21 121 73 200 183 . 32 . 54 53 17 109 48 36 21 . 24 23 40 243 90 . . . 25 Absorbed by Shields 44 | . . 44 . . . . . . . . . . . . . . . . . . . . . . . . . Core Remaining (%) 75 | 100 . . . 19 . 50 . . . . 61 . . . . 69 . . . . 89 78 . 93 . 100 98 Volleys Fired 224 | . 10 21 3 19 74 70 1 . . . 2 . 2 . . . 6 4 . . 4 . . 2 . . 6 Largest 2 | . 2 2 1 2 2 2 2 . . . 1 . 1 . . . 1 1 . . 1 . . 1 . . 1 Hottest 200 | . 90 90 30 90 100 100 79 . . . 39 . 43 . . . 80 80 . . 80 . . 98 . . 200 Shots Fired 351 | . 16 34 3 30 124 116 2 . . . 2 . 2 . . . 6 4 . . 4 . . 2 . . 6 Gun 276 | . 12 26 1 22 100 108 1 . . . . . . . . . 3 . . . . . . . . . 3 Cannon 3 | . . . . . . . . . . . . . . . . . . . . . . . . 2 . . 1 Launcher 57 | . 4 8 2 8 13 4 1 . . . 2 . 2 . . . 3 4 . . 4 . . . . . 2 Special 15 | . . . . . 11 4 . . . . . . . . . . . . . . . . . . . . . Kinetic 212 | . . . 1 . 100 108 . . . . . . . . . . . . . . . . . . . . 3 Thermal 82 | . 12 26 . 22 11 4 1 . . . . . . . . . 3 . . . . . . 2 . . 1 Explosive 57 | . 4 8 2 8 13 4 1 . . . 2 . 2 . . . 3 4 . . 4 . . . . . 2 Electromagnetic . | . . . . . . . . . . . . . . . . . . . . . . . . . . . . Robot Hit Streak 24 | . 5 6 . 3 17 23 24 . . . 1 . 2 . . . . 2 . . . . . . . . 5 Robot Miss Streak 4 | . 2 2 2 4 4 2 . . . . 1 . . . . . 2 . . . . . . . . . 2 Penetration Max . | . . . . . . . . . . . . . . . . . . . . . . . . . . . . Secondary Targets 3 | . 1 . . . 2 . . . . . . . . . . . . . . . . . . . . . . Max Gunslinging Chain 1 | . 1 . . . 1 . . . . . . . . . . . . . . . . . . . . . . Shots Hit Robots 279 | . 7 20 . 13 77 75 24 3 . 1 1 3 1 5 1 . 6 3 1 . 4 1 3 3 1 3 23 Core Hits 230 | . 17 19 4 17 57 44 12 2 . . 4 1 4 1 1 . 11 6 1 . 8 1 2 2 . 2 14 Critical Kills 2 | . . . . . . . . . . . . . . . . . . . . . . . . . . . 2 Critical Parts Destroyed 5 | . . . . . . . 2 . . . . . . . . . . . . . . . . . . . 3 Critical Strikes 12 | . . 1 . 1 . . 3 . . . . . . . . . 2 . . . . . . . . . 5 Burn 2 | . . 1 . 1 . . . . . . . . . . . . . . . . . . . . . . . Destroy 5 | . . . . . . . . . . . . . . . . . . . . . . . . . . . 5 Smash 2 | . . . . . . . 2 . . . . . . . . . . . . . . . . . . . . Sever 1 | . . . . . . . 1 . . . . . . . . . . . . . . . . . . . . Puncture 2 | . . . . . . . . . . . . . . . . . 2 . . . . . . . . . . Melee Attacks 282 | . . . . . . 8 67 6 7 1 . 22 1 9 6 12 23 8 4 5 7 26 11 15 4 12 28 Impact 37 | . . . . . . 6 30 . . . . . . . . . . . 1 . . . . . . . . Slashing 102 | . . . . . . . 37 6 7 . . . . . . . . . . . . . . 9 4 12 27 Piercing 141 | . . . . . . . . . . 1 . 22 1 9 6 12 23 8 3 5 7 26 11 6 . . 1 Sneak Attacks 19 | . . . . . . . 5 3 . . . 1 . . 1 . 2 1 . . 1 . 1 1 1 1 1 Combat Hostiles . | . . . . . . . . . . . . . . . . . . . . . . . . . . . . Follow-up Attacks . | . . . . . . . . . . . . . . . . . . . . . . . . . . . . Damage Inflicted 15433 | 3 531 515 84 812 2276 2035 1677 461 . 96 322 221 404 204 79 . 1045 599 85 . 747 49 189 334 212 382 2071 Guns 2495 | . 73 223 . 112 934 1115 . . . . . . . . . . . . . . . . . . . . 38 Cannons 172 | . . . . . . . . . . . . . . . . . . . . . . . . . . . 172 Explosions 7013 | . 456 284 84 700 1342 847 250 . . . 322 . 404 . . . 672 519 . . 540 . . . . . 593 Melee 5716 | . . . . . . 49 1427 461 . 96 . 221 . 204 79 . 373 80 85 . 207 49 189 334 212 382 1268 Ramming 37 | 3 2 8 . . . 24 . . . . . . . . . . . . . . . . . . . . . Kinetic 2087 | . . . . . 934 1115 . . . . . . . . . . . . . . . . . . . . 38 Thermal 749 | . 73 223 . 112 . . . . . . . . . . . . . . . . . . . . . . 341 Explosive 6844 | . 456 284 84 700 1342 847 250 . . . 322 . 404 . . . 672 519 . . 540 . . . . . 424 Electromagnetic . | . . . . . . . . . . . . . . . . . . . . . . . . . . . . Impact 378 | . . . . . . 49 329 . . . . . . . . . . . . . . . . . . . . Slashing 3421 | . . . . . . . 1098 461 . . . . . . . . . . . . . . . . 212 382 1268 Piercing 1917 | . . . . . . . . . . 96 . 221 . 204 79 . 373 80 85 . 207 49 189 334 . . . Highest Corruption 8 | . . . 4 4 . . 2 . 7 7 . . . . . . . . . . 8 . . . . . 2 Average Corruption 3 | . . . 4 4 . . 1 . 7 7 . . . . . . . . . . 1 . . . . . 1 Corruption Purged 2 | . . . . . . . 2 . . . . . . . . . . . . . . . . . . . . Effects 15 | . . . . 12 . . 2 . 1 . . . . . . . . . . . . . . . . . . Message Errors 4 | . . . . 2 . . 1 . 1 . . . . . . . . . . . . . . . . . . Matter Fused 3 | . . . . 3 . . . . . . . . . . . . . . . . . . . . . . . Heat Flow Errors 4 | . . . . 4 . . . . . . . . . . . . . . . . . . . . . . . Energy Discharges 3 | . . . . 2 . . 1 . . . . . . . . . . . . . . . . . . . . Data Loss (minor) 1 | . . . . 1 . . . . . . . . . . . . . . . . . . . . . . . Overload Shots . | . . . . . . . . . . . . . . . . . . . . . . . . . . . . Overflow Damage 1823 | . 4 3 . 21 31 5 479 125 . 87 28 2 11 . . . 124 117 . . . . 93 27 182 158 326 Projectiles 122 | . . . . . . . . . . . . . . . . . . . . . . . . . . . 122 Explosions 271 | . 4 3 . 21 31 5 . . . . 28 . 11 . . . 45 117 . . . . . . . . 6 Melee 1430 | . . . . . . . 479 125 . 87 . 2 . . . . 79 . . . . . 93 27 182 158 198 Knockbacks 1 | . . . . . . . 1 . . . . . . . . . . . . . . . . . . . . Impact 1 | . . . . . . . 1 . . . . . . . . . . . . . . . . . . . . Kinetic . | . . . . . . . . . . . . . . . . . . . . . . . . . . . . Secondary . | . . . . . . . . . . . . . . . . . . . . . . . . . . . . Self-Inflicted Damage 424 | . 71 36 . 31 224 . . . . . 34 . 28 . . . . . . . . . . . . . . Shots 15 | . 2 2 . 3 6 . . . . . 1 . 1 . . . . . . . . . . . . . . Rammed 11 | 1 1 1 . . . 7 . . . . . . . . . . . . . . . 1 . . . . . Targets Rammed 12 | 1 1 1 . . . 8 . . . . . . . . . . . . . . . 1 . . . . . Kicked . | . . . . . . . . . . . . . . . . . . . . . . . . . . . . Crushed 1 | . . . . . . 1 . . . . . . . . . . . . . . . . . . . . . Highest Temperature 357 | . 150 180 . 357 22 62 3 . . . 4 . . 4 . . . 2 . . . . . . . . 136 Average Temperature 85 | . 69 68 . 114 10 29 3 . . . 4 . . 4 . . . 2 . . . . . . . . 49 Received Heat Transfer 2280 | . . 57 60 183 567 873 129 . 6 . 36 99 . 60 12 . 27 . 9 45 39 18 9 33 9 9 . Effects 1 | . . . . 1 . . . . . . . . . . . . . . . . . . . . . . . Shutdowns 1 | . . . . 1 . . . . . . . . . . . . . . . . . . . . . . . Siege Activations . | . . . . . . . . . . . . . . . . . . . . . . . . . . . . Robots Corrupted . | . . . . . . . . . . . . . . . . . . . . . . . . . . . . Combat Hostiles . | . . . . . . . . . . . . . . . . . . . . . . . . . . . . Parts Fried 11 | . . . . . . . 11 . . . . . . . . . . . . . . . . . . . . Impact Corruptions 8 | . . . . . . . 8 . . . . . . . . . . . . . . . . . . . . Robots Melted . | . . . . . . . . . . . . . . . . . . . . . . . . . . . . Combat Hostiles . | . . . . . . . . . . . . . . . . . . . . . . . . . . . . Parts Melted 1 | . . . . . . . . . . . . . . . . . . . . . . . . . . . 1 Heat Transferred 1388 | . 162 645 . 371 . . . . . . . . . . . . . . . . . . . . . . 210 Parts Sabotaged . | . . . . . . . . . . . . . . . . . . . . . . . . . . . . Parts Stolen . | . . . . . . . . . . . . . . . . . . . . . . . . . . . . Parts Stripped . | . . . . . . . . . . . . . . . . . . . . . . . . . . . . Power Chain Reactions . | . . . . . . . . . . . . . . . . . . . . . . . . . . . . Missiles Intercepted . | . . . . . . . . . . . . . . . . . . . . . . . . . . . . Alert | -11 -10 -10 -10 -9 -8 -8 -7 -7 -7 -7 -6 -6 -6 -6 -6 -5 -5 -5 -5 -5 -4 -4 -3 -3 -2 -2 -1 ------- Run | Scr Mat Min Exi Min Mat Sto Fac Low Low Zio Pro Fac Low Low Dat Pro Fac Upp Upp War Pro Fac Res Qua Res Tes Acc Peak Influence 678 | . 268 132 . 160 429 434 678 . . . . 193 . . . . 235 . . . . 340 185 157 79 497 564 Initial 297 | . . 37 . . 29 141 197 . . . . 47 . . . . . . . . . 122 152 35 24 52 297 Average 169 | . 103 29 . 100 206 217 390 . . . . 70 . . . . 84 . . . . 180 165 107 45 300 403 Maximum Alert Level 2 | . 1 . . . 2 2 2 . . . . . . . . . 1 . . . . 1 . . . 2 2 Low Security (%) 65 | 100 83 100 . 100 35 40 10 . . . . 100 . . . . 93 . . . . 70 100 100 100 30 . Level 1 25 | . 16 . . . 60 56 41 . . . . . . . . . 6 . . . . 29 . . . 38 73 Level 2 9 | . . . . . 3 3 47 . . . . . . . . . . . . . . . . . . 30 26 Level 3 . | . . . . . . . . . . . . . . . . . . . . . . . . . . . . Level 4 . | . . . . . . . . . . . . . . . . . . . . . . . . . . . . Level 5 . | . . . . . . . . . . . . . . . . . . . . . . . . . . . . High Security . | . . . . . . . . . . . . . . . . . . . . . . . . . . . . Max Security . | . . . . . . . . . . . . . . . . . . . . . . . . . . . . Squads Dispatched 34 | . 1 . . . 3 7 4 . . . . 2 . . . . 7 . . . . 4 1 1 . 2 2 Investigation 8 | . 1 . . . 1 1 2 . . . . 1 . . . . 1 . . . . 1 . . . . . Extermination 2 | . . . . . . . . . . . . . . . . . 1 . . . . . . . . . 1 Reinforcement 16 | . . . . . 2 3 1 . . . . 1 . . . . 2 . . . . 3 1 1 . 1 1 Assault 1 | . . . . . . . 1 . . . . . . . . . . . . . . . . . . . . Garrison 7 | . . . . . . 3 . . . . . . . . . . 3 . . . . . . . . 1 . Intercept . | . . . . . . . . . . . . . . . . . . . . . . . . . . . . Construction Impeded 2 | . . . . . 1 . . . . . . . . . . . . . . . . . 1 . . . . Haulers Reinforced 3 | . . . . . . 1 . . . . . 1 . . . . . . . . . 1 . . . . . Active Scanning Responses . | . . . . . . . . . . . . . . . . . . . . . . . . . . . . Cargo Convoy Interrupts . | . . . . . . . . . . . . . . . . . . . . . . . . . . . . Stealth | -11 -10 -10 -10 -9 -8 -8 -7 -7 -7 -7 -6 -6 -6 -6 -6 -5 -5 -5 -5 -5 -4 -4 -3 -3 -2 -2 -1 --------- Run | Scr Mat Min Exi Min Mat Sto Fac Low Low Zio Pro Fac Low Low Dat Pro Fac Upp Upp War Pro Fac Res Qua Res Tes Acc Distress Signals 6 | . . . . . 2 1 . . . . . 1 . . . . 1 . . . . . 1 . . . . Communications Jammed 35 | . . . . . . . 10 . . . . . . . . . 7 . . . . . . . 5 . 13 Distress Signals 22 | . . . . . . . 10 . . . . . . . . . 7 . . . . . . . 5 . . Times Spotted 285 | . 11 10 7 10 23 36 45 . 9 . 5 17 3 1 4 1 11 2 5 10 11 22 15 9 3 8 7 Peak Tracking Total 14 | . 6 2 9 4 5 11 9 . 5 . 4 6 4 1 4 1 5 2 5 8 5 6 14 4 2 4 2 Tactical Retreats 36 | . . 2 . . 1 4 10 . 4 . . 4 . . . . 3 . . . 2 4 . . . 2 . Traps | -11 -10 -10 -10 -9 -8 -8 -7 -7 -7 -7 -6 -6 -6 -6 -6 -5 -5 -5 -5 -5 -4 -4 -3 -3 -2 -2 -1 ------- Run | Scr Mat Min Exi Min Mat Sto Fac Low Low Zio Pro Fac Low Low Dat Pro Fac Upp Upp War Pro Fac Res Qua Res Tes Acc Traps Triggered 8 | . . 3 . . 1 . 1 . . . . . . . . . 1 . . . . . . . . 2 . Indirectly . | . . . . . . . . . . . . . . . . . . . . . . . . . . . . Trap Hack Attempts . | . . . . . . . . . . . . . . . . . . . . . . . . . . . . Triggered . | . . . . . . . . . . . . . . . . . . . . . . . . . . . . Disarmed . | . . . . . . . . . . . . . . . . . . . . . . . . . . . . Reprogrammed 17 | . . . . . . . 6 . . . . . . . . . 1 . . . . 4 . . . 6 . Reused 8 | . . . . . . . 4 . . . . . . . . . . . . . 2 2 . . . . . Traps Extracted . | . . . . . . . . . . . . . . . . . . . . . . . . . . . . Installed 6 | . . 3 . . . . . . . . . . . . . . . . . . 3 . . . . . . Triggered 21 | . . . . . . . 5 3 . . . . . . . 1 . . . 8 2 2 . . . . . Exploded 1 | . . . . 1 . . . . . . . . . . . . . . . . . . . . . . . Machines | -11 -10 -10 -10 -9 -8 -8 -7 -7 -7 -7 -6 -6 -6 -6 -6 -5 -5 -5 -5 -5 -4 -4 -3 -3 -2 -2 -1 ---------- Run | Scr Mat Min Exi Min Mat Sto Fac Low Low Zio Pro Fac Low Low Dat Pro Fac Upp Upp War Pro Fac Res Qua Res Tes Acc Machines Disabled 20 | . 1 1 2 . 2 2 . . . . . . . . 1 . 1 . . . . . . 3 . 6 1 Max in Single Turn 1 | . 1 1 1 . 1 1 . . . . . . . . 1 . . . . . . . . 1 . 1 1 Garrison Access 6 | . . . . . . . 1 . . . . 2 . . . . 1 . . . . . . . . 1 1 Machines Sabotaged . | . . . . . . . . . . . . . . . . . . . . . . . . . . . . Garrisons Compromised . | . . . . . . . . . . . . . . . . . . . . . . . . . . . . Overloaded Fab Kills . | . . . . . . . . . . . . . . . . . . . . . . . . . . . . Fab Network Shutdowns . | . . . . . . . . . . . . . . . . . . . . . . . . . . . . Hacking | -11 -10 -10 -10 -9 -8 -8 -7 -7 -7 -7 -6 -6 -6 -6 -6 -5 -5 -5 -5 -5 -4 -4 -3 -3 -2 -2 -1 --------- Run | Scr Mat Min Exi Min Mat Sto Fac Low Low Zio Pro Fac Low Low Dat Pro Fac Upp Upp War Pro Fac Res Qua Res Tes Acc Machines Accessed 104 | . 3 . 2 . 1 6 20 1 . . . 16 1 . 3 . 17 1 1 1 . 4 4 5 2 10 6 Terminals 56 | . 2 . . . . 4 11 . . . . 7 . . . . 11 . 1 . . 2 4 4 1 6 3 Fabricators 9 | . . . . . . . 1 . . . . 3 . . . . 2 . . . . . . . . 2 1 Repair Stations 10 | . . . . . 1 1 3 . . . . 2 . . . . 1 . . . . 1 . 1 . . . Recycling Units 9 | . 1 . . . . 1 3 . . . . . . . . . 1 . . . . 1 . . 1 . 1 Scanalyzers 2 | . . . . . . . . . . . . 1 . . . . . . . . . . . . . 1 . Garrison Access 9 | . . . . . . . 2 . . . . 3 . . . . 2 . . . . . . . . 1 1 Total Hacks 309 | . 6 . 2 . 3 17 49 1 . . . 44 1 . 17 . 68 1 1 5 . 17 16 13 8 25 15 Successful 199 | . 4 . 2 . 2 10 23 1 . . . 27 1 . 17 . 50 1 1 5 . 14 12 6 5 12 6 Failed 109 | . 2 . . . 1 7 26 . . . . 17 . . . . 17 . . . . 3 4 7 3 13 9 Catastrophic 16 | . . . . . . 2 5 . . . . 1 . . . . 1 . . . . . 1 1 . 3 2 Database Lockouts 1 | . . . . . . . . . . . . . . . . . 1 . . . . . . . . . . Manual 130 | . 5 . 1 . . 4 30 . . . . 21 . . . . 36 . . . . 5 10 7 3 5 3 Terminals 178 | . 4 . . . . 10 32 . . . . 20 . . . . 47 . 1 . . 9 16 10 4 18 7 Fabricators 29 | . . . . . . . 2 . . . . 11 . . . . 8 . . . . . . . . 4 4 Repair Stations 30 | . . . . . 3 4 6 . . . . 4 . . . . 5 . . . . 5 . 3 . . . Recycling Units 22 | . 2 . . . . 3 6 . . . . . . . . . 2 . . . . 3 . . 4 . 2 Scanalyzers 5 | . . . . . . . . . . . . 4 . . . . . . . . . . . . . 1 . Garrison Access 18 | . . . . . . . 3 . . . . 5 . . . . 6 . . . . . . . . 2 2 Terminal Hacks 102 | . 2 . 2 . . 5 10 1 . . . 6 1 . 17 . 23 1 1 5 . 6 8 4 2 6 2 Record 9 | . . . 1 . . . . . . . . . . . 6 . . . 1 . . . . . 1 . . Part Schematic 14 | . . . . . . . 3 . . . . 1 . . 4 . 5 . . . . 1 . . . . . Robot Schematic 4 | . . . . . . . . . . . . . . . 4 . . . . . . . . . . . . Robot Analysis 6 | . 2 . . . . . 1 . . . . . . . . . . . . . . . 1 . . 2 . Prototype ID Bank 12 | . . . . . . . 1 . . . . 1 . . 3 . 1 . . 5 . . 1 . . . . Open Door 5 | . . . . . . 1 . 1 . . . . 1 . . . . 1 . . . . . . . . 1 Level Access Points 3 | . . . . . . . . . . . . . . . . . . . . . . . 1 1 . . 1 Branch Access Points 5 | . . . . . . . 1 . . . . 1 . . . . 1 . . . . . 1 . 1 . . Emergency Access Points 1 | . . . . . . . . . . . . . . . . . 1 . . . . . . . . . . Terminal Index 3 | . . . . . . . . . . . . 1 . . . . 1 . . . . 1 . . . . . Fabricator Index 4 | . . . . . . . . . . . . 1 . . . . 1 . . . . 1 1 . . . . Garrison Index 1 | . . . . . . . . . . . . . . . . . 1 . . . . . . . . . . Unreport Threat 9 | . . . . . . . 1 . . . . 1 . . . . 3 . . . . 1 1 2 . . . Locate Traps 9 | . . . . . . 2 1 . . . . . . . . . 2 . . . . 1 1 1 . 1 . Reprogram Traps 4 | . . . . . . . 1 . . . . . . . . . 1 . . . . 1 . . . 1 . Recall Reinforcements 2 | . . . . . . . . . . . . . . . . . 2 . . . . . . . . . . Registered Components 1 | . . . . . . . . . . . . . . . . . 1 . . . . . . . . . . Registered Prototypes 1 | . . . . . . . . . . . . . . . . . 1 . . . . . . . . . . Zone Layout 7 | . . . . . . 2 1 . . . . . . . . . 2 . . . . . 1 . . 1 . EX-Prototype ID Bank 1 | . . . 1 . . . . . . . . . . . . . . . . . . . . . . . . Protovariant Controls 1 | . . . . . . . . . . . . . . . . . . . . . . . . . . 1 . Fabricator Hacks 16 | . . . . . . . 2 . . . . 6 . . . . 4 . . . . . . . . 2 2 Load Schematic 6 | . . . . . . . 1 . . . . 2 . . . . 1 . . . . . . . . 1 1 Build 10 | . . . . . . . 1 . . . . 4 . . . . 3 . . . . . . . . 1 1 Repair Station Hacks 24 | . . . . . 2 4 3 . . . . 4 . . . . 5 . . . . 5 . 1 . . . Scan Component 10 | . . . . . 1 2 1 . . . . 2 . . . . 2 . . . . 2 . . . . . Repair 10 | . . . . . 1 2 1 . . . . 2 . . . . 2 . . . . 2 . . . . . Refit 4 | . . . . . . . 1 . . . . . . . . . 1 . . . . 1 . 1 . . . Recycling Unit Hacks 9 | . 1 . . . . 1 3 . . . . . . . . . 1 . . . . 1 . . 1 . 1 Retrieve Components 9 | . 1 . . . . 1 3 . . . . . . . . . 1 . . . . 1 . . 1 . 1 Scanalyzer 5 | . . . . . . . . . . . . 4 . . . . . . . . . . . . . 1 . Insert Component 3 | . . . . . . . . . . . . 2 . . . . . . . . . . . . . 1 . Analyze 2 | . . . . . . . . . . . . 2 . . . . . . . . . . . . . . . Garrison Access Hacks 6 | . . . . . . . 1 . . . . 2 . . . . 1 . . . . . . . . 1 1 Seal Access 6 | . . . . . . . 1 . . . . 2 . . . . 1 . . . . . . . . 1 1 Unauthorized Hacks 37 | . 1 . . . . . 4 . . . . 5 . . . . 16 . . . . 2 4 1 2 2 . Terminals 23 | . . . . . . . 2 . . . . 3 . . . . 10 . . . . 1 4 1 1 1 . Track 4 | . . . . . . . . . . . . . . . . . 4 . . . . . . . . . . Assimilate 5 | . . . . . . . . . . . . 1 . . . . 3 . . . . . 1 . . . . Botnet 11 | . . . . . . . 2 . . . . 2 . . . . 2 . . . . 1 2 . 1 1 . Disrupt 2 | . . . . . . . . . . . . . . . . . . . . . . . 1 1 . . . Operators 1 | . . . . . . . . . . . . . . . . . 1 . . . . . . . . . . Fabricators 5 | . . . . . . . . . . . . 2 . . . . 2 . . . . . . . . 1 . Siphon 3 | . . . . . . . . . . . . 2 . . . . 1 . . . . . . . . . . Haulers 1 | . . . . . . . . . . . . . . . . . . . . . . . . . . 1 . Download 1 | . . . . . . . . . . . . . . . . . 1 . . . . . . . . . . Repair Stations . | . . . . . . . . . . . . . . . . . . . . . . . . . . . . Recycling Units 5 | . 1 . . . . . 2 . . . . . . . . . . . . . . 1 . . 1 . . Mask 4 | . . . . . . . 2 . . . . . . . . . . . . . . 1 . . 1 . . Tunnel 1 | . 1 . . . . . . . . . . . . . . . . . . . . . . . . . . Scanalyzers . | . . . . . . . . . . . . . . . . . . . . . . . . . . . . Garrison Access 4 | . . . . . . . . . . . . . . . . . 4 . . . . . . . . . . Reprogram 4 | . . . . . . . . . . . . . . . . . 4 . . . . . . . . . . Data Cores Recovered 1 | . . . . . . . 1 . . . . . . . . . . . . . . . . . . . . Used . | . . . . . . . . . . . . . . . . . . . . . . . . . . . . Hacking Detections 70 | . 2 . . . . 4 16 . . . . 12 . . . . 10 . . . . 2 4 5 2 7 6 Full Trace Events 5 | . . . . . . 1 2 . . . . 1 . . . . . . . . . 1 . . . . . Feedback Events . | . . . . . . . . . . . . . . . . . . . . . . . . . . . . Feedback Blocked . | . . . . . . . . . . . . . . . . . . . . . . . . . . . . Robot Schematics Acquired 5 | . . . . . . . . . . . . . . . 4 . 1 . . . . . . . . . . Robots Built 2 | . . . . . . . . . . . . . . . . . 2 . . . . . . . . . . Matter 238 | . . . . . . . . . . . . . . . . . 238 . . . . . . . . . . Time 84 | . . . . . . . . . . . . . . . . . 84 . . . . . . . . . . Total Robot Build Rating 12 | . . . . . . . . . . . . . . . . . 12 . . . . . . . . . . Part Schematics Acquired 16 | . . . . . . . 3 . . . . 3 . . 4 . 5 . . . . 1 . . . . . Parts Built 7 | . . . . . . . 1 . . . . 3 . . . . 1 . . . . . . . . 1 1 Matter 1659 | . . . . . . . 190 . . . . 639 . . . . 318 . . . . . . . . 256 256 Time 497 | . . . . . . . 31 . . . . 304 . . . . 56 . . . . . . . . 64 42 Total Part Build Rating 42 | . . . . . . . 5 . . . . 15 . . . . 6 . . . . . . . . 8 8 Parts Repaired 10 | . . . . . 1 2 1 . . . . 2 . . . . 2 . . . . 2 . . . . . Time 399 | . . . . . 26 64 60 . . . . 86 . . . . 110 . . . . 53 . . . . . Parts Recycled . | . . . . . . . . . . . . . . . . . . . . . . . . . . . . Recycled Matter . | . . . . . . . . . . . . . . . . . . . . . . . . . . . . Retrieved Matter . | . . . . . . . . . . . . . . . . . . . . . . . . . . . . Retrieved Components 31 | . 5 . . . . 10 6 . . . . . . . . . 2 . . . . 2 . . 3 . 3 Parts Scanalyzed 2 | . . . . . . . . . . . . 2 . . . . . . . . . . . . . . . Part Schematics Acquired 2 | . . . . . . . . . . . . 2 . . . . . . . . . . . . . . . Parts Damaged . | . . . . . . . . . . . . . . . . . . . . . . . . . . . . Bothacking | -11 -10 -10 -10 -9 -8 -8 -7 -7 -7 -7 -6 -6 -6 -6 -6 -5 -5 -5 -5 -5 -4 -4 -3 -3 -2 -2 -1 ------------ Run | Scr Mat Min Exi Min Mat Sto Fac Low Low Zio Pro Fac Low Low Dat Pro Fac Upp Upp War Pro Fac Res Qua Res Tes Acc Used RIF Installer . | . . . . . . . . . . . . . . . . . . . . . . . . . . . . Robots Hacked 1 | . . . . . . 1 . . . . . . . . . . . . . . . . . . . . . Non-combat . | . . . . . . . . . . . . . . . . . . . . . . . . . . . . Combat 1 | . . . . . . 1 . . . . . . . . . . . . . . . . . . . . . Robot Hacks Applied 1 | . . . . . . 1 . . . . . . . . . . . . . . . . . . . . . parse_system 1 | . . . . . . 1 . . . . . . . . . . . . . . . . . . . . . Relay Couplers Released . | . . . . . . . . . . . . . . . . . . . . . . . . . . . . Robots Rewired 11 | . . . . . . . . . . . . . 4 . . . . 1 . 5 . . . . . 1 . Allies Hacked 2 | . . . . . . . . . . . . . . . . . 1 . . 1 . . . . . . . Hacks Repelled . | . . . . . . . . . . . . . . . . . . . . . . . . . . . . Allies | -11 -10 -10 -10 -9 -8 -8 -7 -7 -7 -7 -6 -6 -6 -6 -6 -5 -5 -5 -5 -5 -4 -4 -3 -3 -2 -2 -1 -------- Run | Scr Mat Min Exi Min Mat Sto Fac Low Low Zio Pro Fac Low Low Dat Pro Fac Upp Upp War Pro Fac Res Qua Res Tes Acc Total Allies 27 | . . 1 . . . . . . . 4 . 1 4 . . . 7 1 . 7 . . 1 . . 1 . Largest Group 9 | . . 1 1 . . . . . . 4 4 1 3 3 3 . 5 4 4 9 . . 1 . . 1 . Highest-Rated Group 434 | . . 31 31 . . . . . . 93 93 26 60 60 60 . 255 184 184 434 . . 26 . . 149 . Highest-Rated Ally 149 | . . 31 31 . . . . . . 31 31 26 31 20 20 . 54 54 54 65 . . 26 . . 149 . Total Orders 23 | . . . . . . . . . . . . 4 . 5 8 . 4 . 2 . . . . . . . . STAY 14 | . . . . . . . . . . . . 2 . 2 7 . 2 . 1 . . . . . . . . FOLLOW 9 | . . . . . . . . . . . . 2 . 3 1 . 2 . 1 . . . . . . . . Ally Attacks 113 | . . . . . . . . . . . 31 . 8 5 3 . 13 6 12 21 . . . . . 14 . Total Damage 3374 | . . . . . . . . . . . 381 . 202 138 98 . 320 258 331 542 . . . . . 1104 . Kills 27 | . . . . . . . . . . . 5 . 1 . . . 5 3 5 2 . . . . . 6 . Allies Corrupted . | . . . . . . . . . . . . . . . . . . . . . . . . . . . . Allies Melted 1 | . . . . . . . . . . . . . . . . . . . . . . . . . . 1 . Intel | -11 -10 -10 -10 -9 -8 -8 -7 -7 -7 -7 -6 -6 -6 -6 -6 -5 -5 -5 -5 -5 -4 -4 -3 -3 -2 -2 -1 ------- Run | Scr Mat Min Exi Min Mat Sto Fac Low Low Zio Pro Fac Low Low Dat Pro Fac Upp Upp War Pro Fac Res Qua Res Tes Acc Robot Analysis Total 6 | . 2 . . . . . 1 . . . . . . . . . . . . . . . 1 . . 2 . Derelict Logs Recovered 15 | . . 1 . 1 . . . 1 1 1 2 . 2 1 . 1 . 2 2 . . . . . . . . Drone Launches 2 | . . . . . . . . . . . . . . . . . . . . . . . 2 . . . . Drone Recoveries . | . . . . . . . . . . . . . . . . . . . . . . . . . . . . Exploration | -11 -10 -10 -10 -9 -8 -8 -7 -7 -7 -7 -6 -6 -6 -6 -6 -5 -5 -5 -5 -5 -4 -4 -3 -3 -2 -2 -1 ------------- Run | Scr Mat Min Exi Min Mat Sto Fac Low Low Zio Pro Fac Low Low Dat Pro Fac Upp Upp War Pro Fac Res Qua Res Tes Acc Turns Passed 12016 | 108 454 1434 462 505 742 1054 947 294 146 510 254 551 340 282 86 226 724 495 286 427 196 294 174 209 81 362 373 Spaces Moved 14712 | 57 257 604 280 279 213 462 1423 573 241 862 401 1016 662 510 159 362 986 886 651 770 390 444 360 300 219 647 698 Core 5 | 5 . . . . . . . . . . . . . . . . . . . . . . . . . . . Treads 2094 | 52 257 604 280 279 213 409 . . . . . . . . . . . . . . . . . . . . . Legs . | . . . . . . . . . . . . . . . . . . . . . . . . . . . . Wheels . | . . . . . . . . . . . . . . . . . . . . . . . . . . . . Hover . | . . . . . . . . . . . . . . . . . . . . . . . . . . . . Flight 12613 | . . . . . . 53 1423 573 241 862 401 1016 662 510 159 362 986 886 651 770 390 444 360 300 219 647 698 Fastest Speed 19 | 50 160 160 160 160 155 32 32 42 42 42 42 26 26 26 26 26 26 31 31 31 31 28 25 28 28 19 21 Average Speed 50 | 150 160 160 160 160 158 141 41 42 42 42 42 32 26 26 26 26 29 31 31 31 31 29 28 28 28 25 26 Slowest Speed 260 | 160 160 160 260 160 160 160 42 42 42 42 112 42 96 26 28 26 34 31 31 31 31 34 34 29 28 28 29 Overloaded Moves 17 | . . . . . . . . . . . . . . . . . . . . . . . . . . . 17 Propulsion Burnouts . | . . . . . . . . . . . . . . . . . . . . . . . . . . . . Robots Hopped 47 | . . . . . . . 13 . . . . 7 . 2 . . 3 . . 6 . 4 6 3 2 1 . Cave-ins Triggered 1 | . . . . . . . . . 1 . . . . . . . . . . . . . . . . . . Exploration Rate (%) 49 | 5 47 91 71 67 19 65 40 71 34 85 52 28 70 46 76 42 19 89 71 81 51 19 15 48 9 69 15 Regions Visited 27 Branch Regions 18 Pre-discovered Areas 8 | . 1 1 1 . . . . 1 . 1 . . 1 . 1 . . 1 . . . . . . . . . Known Exits Taken 18 | . . . . . . . 1 1 1 1 1 1 1 1 1 1 1 1 . . 1 1 1 1 1 1 . Unknown Exits Taken 9 | 1 1 1 1 1 1 1 . . . . . . . . . . . . 1 1 . . . . . . . Scrap Searched 23 | . . 1 . 2 . . . 2 . 3 2 . 2 3 . 2 . 4 1 . 1 . . . . . . Spaces Dug 234 | . . 23 . 13 20 24 33 3 7 . . 14 13 3 1 10 10 5 1 . 3 22 8 9 3 1 8 Terrain Destroyed 588 | . 13 49 12 83 75 26 47 3 7 . 26 14 25 3 1 10 21 58 1 . 39 22 8 9 3 1 32 Melee 143 | . . . . . . 2 33 3 7 . . 14 1 3 1 10 10 5 1 . 3 22 8 8 3 1 8 Projectile 15 | . . . . . 11 3 . . . . . . . . . . . . . . . . . 1 . . . AOE 430 | . 13 49 12 83 64 21 14 . . . 26 . 24 . . . 11 53 . . 36 . . . . . 24 Terrain Rammed . | . . . . . . . . . . . . . . . . . . . . . . . . . . . . Walls Destroyed . | . . . . . . . . . . . . . . . . . . . . . . . . . . . . Machines Disabled . | . . . . . . . . . . . . . . . . . . . . . . . . . . . . Actions | -11 -10 -10 -10 -9 -8 -8 -7 -7 -7 -7 -6 -6 -6 -6 -6 -5 -5 -5 -5 -5 -4 -4 -3 -3 -2 -2 -1 --------- Run | Scr Mat Min Exi Min Mat Sto Fac Low Low Zio Pro Fac Low Low Dat Pro Fac Upp Upp War Pro Fac Res Qua Res Tes Acc Total 18336 | 76 284 1038 290 306 473 749 1643 614 272 1008 481 1194 820 638 193 475 1363 1080 727 947 445 544 400 395 228 815 838 Wait 2609 | 9 . 394 . . 135 132 124 26 25 138 76 128 130 110 25 97 327 168 68 141 30 63 13 62 5 106 77 Move 14598 | 57 256 603 279 278 212 461 1396 572 240 861 400 1001 661 506 158 361 980 885 650 760 389 436 348 293 214 644 697 Hop 40 | . . . . . . . 13 . . . . 7 . 1 . . 2 . . 3 . 3 5 3 2 1 . Pick Up 91 | 4 8 7 1 2 13 8 8 2 . 1 . 8 . . 1 1 6 1 2 3 2 . . 5 . 3 5 Fast Attach 106 | 6 1 . . . 6 7 15 3 . 3 1 14 1 2 1 . 4 . . . . 7 13 3 1 11 7 Attach 47 | . . . 2 2 9 8 1 1 . . . . . 2 . 2 3 1 1 1 3 . 3 . . . 8 Detach 34 | . . . . . 3 4 4 . . . . 2 . 1 1 . 3 . . 1 2 2 2 2 1 2 4 Swap 102 | . 4 2 3 4 17 22 4 1 . . 2 2 6 5 1 1 4 8 2 2 4 1 1 2 . 4 . Drop 112 | . 4 3 2 1 4 21 10 3 . 4 . 10 1 2 . 1 5 1 1 5 1 5 4 8 1 9 6 Fire 224 | . 10 21 3 19 74 70 1 . . . 2 . 2 . . . 6 4 . . 4 . . 2 . . 6 Melee 280 | . . . . . . 8 67 6 7 1 . 22 1 9 6 12 23 8 3 4 7 26 11 15 4 12 28 Ram 1 | . . . . . . . . . . . . . . . . . . . . . . 1 . . . . . Kick . | . . . . . . . . . . . . . . . . . . . . . . . . . . . . Crush 10 | . 1 1 . . . 8 . . . . . . . . . . . . . . . . . . . . . Escape Stasis 20 | . . 4 . . . . . . . . . . . . . . . . . . . . . . . 16 . Rewire 56 | . . . . . . . . . . . . . 18 . . . . 4 . 27 . . . . . 7 . Trap 6 | . . 3 . . . . . . . . . . . . . . . . . . 3 . . . . . . Miscellaneous . | . . . . . . . . . . . . . . . . . . . . . . . . . . . . Route ------- -11/Scrapyard -10/Materials (discovered 2 exits: [*Mat] / [*Min]) -10/Mines (discovered 3 exits: [*Mat x2] / *Exi) -10/Exiles (discovered 2 exits: [*Min x2]) -9/Mines -8/Materials -8/Storage -7/Factory (discovered 2 exits: *Low x2) -7/Lower Caves -7/Lower Caves -7/Zion -6/Proximity Caves -6/Factory (discovered 5 exits: *Fac / *Low x2 / Ext x2) -6/Lower Caves -6/Lower Caves -6/Data Miner -5/Proximity Caves -5/Factory (discovered 3 exits: *Fac / *Upp x2) -5/Upper Caves -5/Upper Caves -5/Warlord -4/Proximity Caves -4/Factory (discovered 2 exits: *Res x2) -3/Research (discovered 6 exits: Res x3 / *Arm / *Qua x2) -3/Quarantine -2/Research (discovered 2 exits: *Tes x2) -2/Testing -1/Access To Epsilon Eridani History --------- Turn | Location | Event 38 | -11/Scrapyard | Discovered new exit (range 16) 109 | -11/Scrapyard | Entered Materials 298 | -10/Materials | Discovered new exit (range 18) 310 | -10/Materials | Build established: Mutant 477 | -10/Materials | Discovered new exit (range 12) 563 | -10/Materials | Entered Mines 589 | -10/Mines | Found a hidden stash of uninstalled traps 614 | -10/Mines | Assembled infested the area 832 | -10/Mines | Discovered new exit (range 7) 1221 | -10/Mines | Learned location of Mines (-9) 1335 | -10/Mines | Received a Rocket Launcher from a helpful Derelict 1415 | -10/Mines | Discovered new exit (range 5) 1698 | -10/Mines | Deemed a non-threat by the Exiles lab entrance 1699 | -10/Mines | Discovered new exit (range 5) 1852 | -10/Mines | Escorted by a lone wolf Derelict 1997 | -10/Mines | Entered Exiles 1997 | -10/Exiles | Accompanied by 1 ally 2018 | -10/Exiles | Discovered new exit (range 15) 2044 | -10/Exiles | Met 8R-AWN 2070 | -10/Exiles | Met EX-HEX 2140 | -10/Exiles | Met EX-DEC 2167 | -10/Exiles | Learned location of Zion (-7) 2193 | -10/Exiles | Met EX-BIN 2220 | -10/Exiles | Aligned with FarCom system 2222 | -10/Exiles | Given EX-Vault access code 2260 | -10/Exiles | Opened EX-Vault 2295 | -10/Exiles | Warned to stay clear of 0b10 Research branches 2410 | -10/Exiles | Attacked by the Exiles 2428 | -10/Exiles | Discovered new exit (range 17) 2459 | -10/Exiles | Entered Mines 2488 | -9/Mines | Lost 3 parts (2n1w) 2681 | -9/Mines | Core integrity fell below 50% 2848 | -9/Mines | Learned location of 1 exit from Proximity Caves 2918 | -9/Mines | Core integrity fell below 20% 2946 | -9/Mines | Discovered new exit (range 10) 2964 | -9/Mines | Entered Materials 2964 | -8/Materials | Evolved 4 slots: Propulsion x2, Utility x2 2974 | -8/Materials | Discovered new exit (range 17) 3315 | -8/Materials | Repaired Lgt. Treads 3473 | -8/Materials | Build established: Scavenger-Mutant 3706 | -8/Materials | Entered Storage 3920 | -8/Storage | Garrison activated, responded to threat 4241 | -8/Storage | Repaired Adv. Treads 4268 | -8/Storage | Repaired Lgt. Treads 4714 | -8/Storage | Lost 8 parts (1p3n3u1w) 4748 | -8/Storage | Destroyed 8 combat bots 4753 | -8/Storage | Discovered new exit (range 6) 4760 | -8/Storage | Entered Factory 4760 | -7/Factory | Evolved 2 slots: Utility x2 4917 | -7/Factory | Build established: Mutant 4921 | -7/Factory | Identified exit to Lower Caves 5416 | -7/Factory | Fabricated Adv. Sensor Array (x1) 5560 | -7/Factory | First assault squad dispatched 5590 | -7/Factory | Repaired Imp. VTOL Module 5707 | -7/Factory | Entered Lower Caves 5940 | -7/Lower Caves | Found Alien Artifact 5940 | -7/Lower Caves | Identified Core Expander 5940 | -7/Lower Caves | Installed Core Expander, added new Propulsion slot 5965 | -7/Lower Caves | Discovered new exit (range 14) 6000 | -7/Lower Caves | Identified exit to Lower Caves 6001 | -7/Lower Caves | Entered another Lower Caves area 6018 | -7/Lower Caves | Build established: Scout 6056 | -7/Lower Caves | Attracted the attention of an 0b10 checkpoint 6096 | -7/Lower Caves | Crushed by falling debris 6144 | -7/Lower Caves | Discovered new exit (range 5) 6145 | -7/Lower Caves | Identified exit to Zion 6147 | -7/Lower Caves | Entered Zion 6169 | -7/Zion | System corruption cleaned by Quarantine Array 6184 | -7/Zion | Discovered new exit (range 15) 6198 | -7/Zion | Given A8's code to call for help 6303 | -7/Zion | Acquired unknown access codes intercepted by a Zionite 6350 | -7/Zion | Gained Derelict followers 6413 | -7/Zion | Found CR-A16's Pointy Stick 6420 | -7/Zion | Learned Factory trap positions 6541 | -7/Zion | Identified exit to Proximity Caves 6657 | -7/Zion | Entered Proximity Caves 6657 | -6/Proximity Caves | Accompanied by 4 allies 6658 | -6/Proximity Caves | Identified exit to Factory 6897 | -6/Proximity Caves | Learned 4 Factory zone layouts 6911 | -6/Proximity Caves | Entered Factory 6911 | -6/Factory | Evolved 2 slots: Utility x2 6913 | -6/Factory | Loaded intel: 71 trap records 7083 | -6/Factory | Identified exit to Lower Caves 7083 | -6/Factory | Identified exit to Extension 7103 | -6/Factory | Discovered new exit (range 13) 7229 | -6/Factory | Found Prototype Processor 7241 | -6/Factory | Identified Exp. Targeting Computer 7289 | -6/Factory | Fabricated Biomechanical Wings? 7307 | -6/Factory | Repaired Mic. Fission Core 7358 | -6/Factory | Fabricated Biomechanical Wings? 7376 | -6/Factory | Repaired Imp. VTOL Module 7395 | -6/Factory | Fabricated Biomechanical Wings? 7405 | -6/Factory | Spotted B-75 Beast 7462 | -6/Factory | Entered Lower Caves 7477 | -6/Lower Caves | Encountered a Warlord checkpoint 7517 | -6/Lower Caves | Learned Factory stockpile data 7603 | -6/Lower Caves | Build established: Hacker-Sprinter 7630 | -6/Lower Caves | Attacked by a delusional Derelict stockpiling Unaware 7763 | -6/Lower Caves | Discovered new exit (range 16) 7773 | -6/Lower Caves | Identified exit to Lower Caves 7802 | -6/Lower Caves | Entered another Lower Caves area 7802 | -6/Lower Caves | Accompanied by 3 allies 7859 | -6/Lower Caves | Encountered a Warlord checkpoint 7871 | -6/Lower Caves | Spotted B-75 Beast 7948 | -6/Lower Caves | Learned Factory terminal intel 8021 | -6/Lower Caves | Discovered new exit (range 10) 8023 | -6/Lower Caves | Identified exit to Data Miner 8084 | -6/Lower Caves | Entered Data Miner 8084 | -6/Data Miner | Accompanied by 3 allies 8084 | -6/Data Miner | Discovered new exit (range 6) 8089 | -6/Data Miner | Met Data Miner 8096 | -6/Data Miner | Learned location of Section 7 (-2) 8096 | -6/Data Miner | Acquired the access code to Warlord's prototype stash 8099 | -6/Data Miner | Received God Mode back door access code from Data Miner 8141 | -6/Data Miner | Destroyed Data Miner 8143 | -6/Data Miner | Found Prototype Hackware 8145 | -6/Data Miner | Found Prototype Hackware 8145 | -6/Data Miner | Identified Quantum Router 8148 | -6/Data Miner | Data Conduit disabled 8170 | -6/Data Miner | Identified exit to Proximity Caves 8170 | -6/Data Miner | Entered Proximity Caves 8171 | -5/Proximity Caves | Identified exit to Factory 8180 | -5/Proximity Caves | Learned 12 Factory zone layouts 8396 | -5/Proximity Caves | Entered Factory 8396 | -5/Factory | Evolved 2 slots: Power x1, Propulsion x1 8397 | -5/Factory | Identified exit to Upper Caves 8397 | -5/Factory | Identified System Mapper 8398 | -5/Factory | Identified exit to Factory 8400 | -5/Factory | Loaded intel: 20 terminal locations 8483 | -5/Factory | Repaired Adv. Sensor Array 8544 | -5/Factory | Repaired Imp. VTOL Module 8701 | -5/Factory | Fabricated Mni. Smartbomb Launcher? 8827 | -5/Factory | Fabricated P-70 Sage (x2) 8905 | -5/Factory | Central database locked down 9120 | -5/Factory | Entered Upper Caves 9120 | -5/Upper Caves | Accompanied by 3 allies 9385 | -5/Upper Caves | Learned location of Armory (-3) 9424 | -5/Upper Caves | Identified exit to Upper Caves 9615 | -5/Upper Caves | Entered another Upper Caves area 9615 | -5/Upper Caves | Accompanied by 4 allies 9617 | -5/Upper Caves | Attracted the attention of an 0b10 checkpoint 9662 | -5/Upper Caves | Learned Factory non-interactive machine intel 9779 | -5/Upper Caves | Learned 12 Factory zone layouts 9808 | -5/Upper Caves | Discovered new exit (range 11) 9901 | -5/Upper Caves | Entered Warlord 9901 | -5/Warlord | Accompanied by 4 allies 10053 | -5/Warlord | Warlord's base attacked by MAIN.C 10299 | -5/Warlord | Warlord forces counterattacked 10316 | -5/Warlord | Discovered new exit (range 14) 10328 | -5/Warlord | Entered Proximity Caves 10337 | -4/Proximity Caves | Spotted B-86 Titan 10362 | -4/Proximity Caves | Revealed the true nature of CR-A16's Pointy Stick 10365 | -4/Proximity Caves | Destroyed B-86 Titan 10432 | -4/Proximity Caves | Attracted the attention of an 0b10 checkpoint 10520 | -4/Proximity Caves | Discovered exit to Factory (range 6) 10524 | -4/Proximity Caves | Entered Factory 10524 | -4/Factory | Evolved 2 slots: Propulsion x1, Utility x1 10525 | -4/Factory | Identified exit to Research 10526 | -4/Factory | Loaded intel: 202 non-interactive machine locations 10664 | -4/Factory | Repaired Nuclear Pulse Array 10691 | -4/Factory | Repaired Adv. Sensor Array 10795 | -4/Factory | Discovered exit to Research (range 15) 10818 | -4/Factory | Entered Research 10818 | -3/Research | Evolved 2 slots: Propulsion x1, Utility x1 10846 | -3/Research | Lost 5 parts (1p2n2u) 10899 | -3/Research | Identified exit to Research 10899 | -3/Research | Identified exit to Armory 10899 | -3/Research | Identified exit to Quarantine 10992 | -3/Research | Entered Quarantine 11010 | -3/Quarantine | Lost 4 parts (2n2u) 11016 | -3/Quarantine | Found Alien Artifact 11028 | -3/Quarantine | Found Fusion Bomb Launcher 11077 | -3/Quarantine | Found Alien Slashing Weapon 11077 | -3/Quarantine | Identified Sigix Broadsword 11190 | -3/Quarantine | Found Alien Artifact 11198 | -3/Quarantine | Found Alien Artifact 11201 | -3/Quarantine | Entered Research 11201 | -2/Research | Evolved 2 slots: Utility x2 11239 | -2/Research | Found Prototype Device 11239 | -2/Research | Identified Exp. Thermal Defense Suite 11253 | -2/Research | Identified exit to Testing 11282 | -2/Research | Entered Testing 11283 | -2/Testing | Spotted PG-J0146VZIHC 11297 | -2/Testing | Rewired PG-J0146VZIHC 11326 | -2/Testing | Found Prototype Energy Cannon 11326 | -2/Testing | Identified Null Cannon 11365 | -2/Testing | Spotted Striker 11402 | -2/Testing | Garrison activated, responded to threat 11456 | -2/Testing | Found Prototype Device 11456 | -2/Testing | Identified Exp. Thermal Shield 11487 | -2/Testing | Spotted Superbehemoth 11521 | -2/Testing | Found Prototype Energy Cannon 11536 | -2/Testing | Found Prototype Ballistic Gun 11539 | -2/Testing | Discovered new exit (range 16) 11615 | -2/Testing | Fabricated Impulse Thruster Array (x1) 11644 | -2/Testing | Identified exit to Access 11644 | -2/Testing | Entered Access 11644 | -1/Access | Evolved 2 slots: Utility x2 11690 | -1/Access | Fabricated Impulse Thruster Array (x1) 11843 | -1/Access | Identified exit to Surface 11908 | -1/Access | Identified Subatomic Replicator 11908 | -1/Access | Used Subatomic Replicator to replicate Alien Artifact 11935 | -1/Access | Lost 4 parts (2n2u) 11948 | -1/Access | Identified Terrabomb (x2) 11948 | -1/Access | Used Terrabomb 11949 | -1/Access | Used Terrabomb 11981 | -1/Access | Identified Imp. Potential Cannon 11997 | -1/Access | Identified Hyp. Multirail 12017 | *** | Escaped! Last Messages --------------- 12000_ Destroyed Imp. Antigrav System. 12000_ P-80 Master suffers critical hit (Destroy). 12000_ Destroyed Imp. Antigrav System. 12000_ HV Slug penetrates P-80 Master. 12000_ P-80 Master suffers critical hit (Destroy). 12000_ Destroyed Prototype Energy Gun. 12001_ U-05 Engineer builds a Wall. 12001_ U-05 Engineer lays Concrete. 12002_ HV Slug penetrates P-80 Master. 12002_ P-80 Master suffers critical hit (Destroy). 12002_ P-80 Master destroyed. 12003_ R-10 Processor collects Med. Storage Unit. 12003_ U-05 Engineer lays Concrete. 12006_ Acquired Backup Power VII. 12008_ Acquired Sigix Broadsword. 12010_ Acquired 10 matter. 12012_ U-05 Engineer builds a Reinforced Barrier. 12014_ R-10 Processor collects Adv. Heat Sink. 12016_ ALERT: Security rotation in progress. 12016_ U-05 Engineer builds a Reinforced Barrier. Map ----- +----------------------------------------------------+ | ?????????????????????????????????????????????????? | | ?????????????????????????????????????????????????? | | ?????????????????????????????????????????????????? | | ?????????????????????????????????????????????????? | | ?????????????????????????????????????????????????? | | ?????????????????????????????????????????????????? | | ????????????????????????? ????????? ?" "????????? | | ??????????????# ???????? " " "" ??????? | | ??????????????# ??????? " " "" ?????? | | ??????????????# ????? """"""""""" "" "????? | | ??????????????# ?""" ; " "" """??? | | ??????????????# """"" ; " "" "" | | ??????????????? """"" ; " "" "" | | ??????????????? """" ; " "" | | ??????????????# ! " ; " "" | | ??????????????? ; + "" | | ???????????????? ] ; " #" | | ?????????????????? ; " #""""""""" | | ???????????????????#;;;;;;;;""";;;""" # | | ???????????????????# ";; *=# | | ???????????????????#;;;;;;;### ####### # | | ???????????????????"" = =# | | ????????????????????" %% | | ????????????????????"! | | | ????????????????????"%= H *; | | ????????????????????"% "@ = ; | | ????????????????????" "" ; | | ????????????????????" ; "" | | ????????????????????" " " | | ????????????????????" """ """ " " | | ????????????????????" u """T""" " " | | ????????????????????##;;;;##;; ;;;"""" " " | | ?????????????????????# ;;; " " " | | ?????????????????????## " """""""""" | | ??????????????????????# " " | | ??????????????????????## R " " | | ???????????????????????#| ! ; " + " | | ???????????????????????####% ;;;;""" " """" | | ?????????????????? [u! ! " """"" | | ?????????????????? = + """"" | | ?????????????????????###### """""""" " """" | | ??????????????????????????## ###""""""+" " | | ???????????????????????????# ? # ? | | ???????????????????????????# # # | | ??????????????????????????????+ """ # | | ??????????????????????????????# """" # | | ??????????????????????????????# "F"" #+######## | | ??????????????????????????????# "" #????????? | | ??????????????????????????????# ?"" #????????? | | ??????????????????????????????# ??? #????????? | +----------------------------------------------------+ Best States ------------- Heat Dissipation 78 Energy Generation 41 Energy Capacity 390 Matter Stores 300 Matter Capacity 300 Sight Range 22 Robot Scan Range 16 Terrain Scan Density 210 ECM Strength 2 Jamming Range 16 Armor Coverage 225 Resistance: EM 15 Propulsion Shielding 66 Reclamation Efficiency 25 Melee Speed Boost 30 Evasion (%) 78 Targeting Accuracy 16 Melee Accuracy 6 Recoil Reduction 4 Offensive Hacking 34 Defensive Hacking 37 Item Schematics ----------------- Hacking Suite | -7/Factory | Hacked Adv. Sensor Array | -7/Factory | Hacked System Shield | -7/Factory | Hacked Biomechanical Wings | -6/Factory | Hacked Exp. Targeting Computer | -6/Factory | Scanalyzed Mak. ECM Suite | -6/Factory | Scanalyzed Combat Drone Bay | -6/Data Miner | Free Lgt. Regenerative Plating | -6/Data Miner | Free Triangulator | -6/Data Miner | Free Mni. Smartbomb Launcher | -6/Data Miner | Free Impulse Thruster Array | -5/Factory | Hacked Mic. Fission Core | -5/Factory | Hacked Quantum Capacitor | -5/Factory | Hacked Cmb. Gravmag System | -5/Factory | Hacked Adv. Force Field | -5/Factory | Hacked Adv. System Shield | -4/Factory | Hacked Robot Schematics ------------------ S-27 Virus | -6/Data Miner | Free G-50 Soldier | -6/Data Miner | Free H-66 Slayer | -6/Data Miner | Free I-36 Angel | -6/Data Miner | Free P-70 Sage | -5/Factory | Downloaded Fabricated ------------ Adv. Sensor Array | x1 | -7/Factory Biomechanical Wings | x1 | -6/Factory Biomechanical Wings | x1 | -6/Factory Biomechanical Wings | x1 | -6/Factory Mni. Smartbomb Launcher | x1 | -5/Factory P-70 Sage | x2 | -5/Factory | Preloaded Impulse Thruster Array | x1 | -2/Testing Impulse Thruster Array | x1 | -1/Access Alien Tech Used ----------------- Core Expander Sigix Broadsword Subatomic Replicator Terrabomb Achievements -------------- None Challenges ------------ None Game ------ Seed TrapShadingCalibrator Manual? 0 Play Time 02:19:02 Cumulative 876.0 hours Start 2021.07.16 @ 14:16:25 End 2021.07.17 @ 07:35:15 Sessions 5 Manual Loads 0 Difficulty Rogue Special Mode None Game No. 612 Rogue 608 Adventurer 4 Explorer 0 Win Type 0 Total 95 Types 73/9/4/4/2/0/0/2/1 Lore% 94 Gallery% 97 Achievement% 96 Wizard Run 0 Options --------- ASCII 0 Keyboard 1 Movement Vi Keybinds 0 Fullscreen 0 Font 16/Terminus Map View 76x50 Tactical HUD 1 Map Filters NONE Filters NONE Steam 1 RUN: 4860596b-8971-41be-8995-72e29a00cc04